fUSD/lending_fUSD_20240428
["ID","MTS","AMOUNT","RATE_DAILY","PERIOD"]
[58745,1714333864343,-500.0,0.00011506,2]
[58747,1714333864362,-647.31,0.00011506,2]
[58749,1714333864382,-500.0,0.00011506,2]
[58751,1714333864402,-500.0,0.00011506,2]
[58752,1714333864412,-3853.58,0.00011506,2]
[58753,1714333864423,-673.74,0.00011506,2]
[58755,1714333864444,-150.0,0.00011567,2]
[58757,1714333864464,-12054.64145863,0.000117,2]
[58759,1714333864485,-645.91,0.00011779,2]
[58761,1714333864506,-500.0,0.0001178,2]
[58763,1714333864527,-500.0,0.0001178,2]
[58765,1714333864547,-365.96927254,0.0001178,2]
[58767,1714333864566,-500.0,0.0001178,2]
[58769,1714333864585,-500.0,0.0001178,2]
[58771,1714333864604,-500.0,0.0001178,2]
[58773,1714333864624,-500.0,0.0001178,2]
[58775,1714333864644,-500.0,0.0001178,2]
[58777,1714333864664,-500.0,0.0001178,2]
[58778,1714333864673,-500.0,0.0001178,2]
[58779,1714333864684,-500.0,0.0001178,2]
[58780,1714333864694,-500.0,0.0001178,2]
[58781,1714333864703,-503.80902002,0.0001178,2]
[58783,1714333864722,-500.0,0.0001178,2]
[58784,1714333864732,-206.14179409,0.0001178,2]
[58785,1714333864741,-500.0,0.0001178,2]
[58787,1714333864760,-500.0,0.0001178,2]
[58789,1714333864779,-500.0,0.0001178,2]
[58791,1714333864798,-503.69037833,0.0001178,2]
[58793,1714333864816,-500.0,0.0001178,2]
[58795,1714333864835,-500.0,0.0001178,2]
[58797,1714333864854,-500.0,0.0001178,2]
[58799,1714333864874,-500.0,0.0001178,2]
[58801,1714333864894,-500.0,0.0001178,2]
[58803,1714333864912,-500.0,0.0001178,2]
[58805,1714333864932,-500.0,0.0001178,2]
[58807,1714333864951,-500.0,0.0001178,2]
[58809,1714333864970,-500.0,0.0001178,2]
[58811,1714333864988,-500.0,0.0001178,2]
[58813,1714333865007,-500.0,0.0001178,2]
[58815,1714333865029,-500.0,0.0001178,2]
[58817,1714333865048,-500.0,0.0001178,2]
[58819,1714333865070,-500.0,0.0001178,2]
[58821,1714333865090,-500.0,0.0001178,2]
[58823,1714333865112,-500.0,0.0001178,2]
[58825,1714333865133,-500.0,0.0001178,2]
[58827,1714333865152,-500.0,0.0001178,2]
[58829,1714333865172,-503.39658036,0.0001178,2]
[58831,1714333865192,-500.0,0.0001178,2]
[58832,1714333865202,-500.0,0.0001178,2]
[58833,1714333865212,-500.0,0.0001178,2]
[58834,1714333865222,-500.0,0.0001178,2]
[58835,1714333865231,-500.0,0.0001178,2]
[58836,1714333865241,-500.0,0.0001178,2]
[58837,1714333865250,-503.98927633,0.0001178,2]
[58838,1714333865260,-500.0,0.0001178,2]
[58839,1714333865269,-500.0,0.0001178,2]
[58841,1714333865288,-500.0,0.0001178,2]
[58843,1714333865308,-500.0,0.0001178,2]
[58845,1714333865327,-548.48,0.0001178,2]
[58847,1714333865346,-500.0,0.0001178,2]
[58849,1714333865366,-500.0,0.0001178,2]
[58851,1714333865385,-500.0,0.0001178,2]
[58853,1714333865405,-500.0,0.0001178,2]
[58854,1714333865414,-500.0,0.0001178,2]
[58855,1714333865424,-500.0,0.0001178,2]
[58856,1714333865434,-500.0,0.0001178,2]
[58857,1714333865444,-500.0,0.0001178,2]
[58858,1714333865455,-500.0,0.0001178,2]
[58859,1714333865465,-500.0,0.0001178,2]
[58860,1714333865475,-500.0,0.0001178,2]
[58861,1714333865484,-500.0,0.0001178,2]
[58863,1714333865510,-500.0,0.0001178,2]
[58865,1714333865529,-500.0,0.0001178,2]
[58867,1714333865547,-500.0,0.0001178,2]
[58869,1714333865567,-604.97,0.0001178,2]
[58871,1714333865585,-500.0,0.0001178,2]
[58873,1714333865604,-500.0,0.0001178,2]
[58875,1714333865623,-641.19,0.0001178,2]
[58877,1714333865642,-500.0,0.0001178,2]
[58879,1714333865660,-500.0,0.0001178,2]
[58881,1714333865680,-500.0,0.0001178,2]
[58883,1714333865698,-500.0,0.0001178,2]
[58884,1714333865708,-253.60631244,0.0001178,2]
[58885,1714333865717,-195.86,0.0001178,2]
[58887,1714333865736,-500.0,0.0001178,2]
[58889,1714333865755,-500.0,0.0001178,2]
[58891,1714333865773,-500.0,0.0001178,2]
[58893,1714333865792,-500.0,0.0001178,2]
[58894,1714333865801,-500.0,0.0001178,2]
[58895,1714333865810,-500.0,0.0001178,2]
[58896,1714333865819,-500.0,0.0001178,2]
[58897,1714333865828,-500.0,0.0001178,2]
[58898,1714333865838,-500.0,0.0001178,2]
[58899,1714333865853,-704.81,0.0001178,2]
[58901,1714333865883,-370.0,0.0001178,2]
[58903,1714333865911,-500.0,0.0001178,2]
[58905,1714333865939,-500.0,0.0001178,2]
[58906,1714333865952,-500.0,0.0001178,2]
[58907,1714333865966,-500.0,0.0001178,2]
[58909,1714333865993,-500.0,0.0001178,2]
[58911,1714333866020,-754.87,0.0001178,2]
[58913,1714333866050,-500.0,0.0001178,2]
[58915,1714333866077,-500.0,0.0001178,2]
[58917,1714333866104,-500.0,0.0001178,2]
[58919,1714333866130,-500.0,0.0001178,2]
[58921,1714333866151,-500.0,0.0001178,2]
[58923,1714333866174,-405.49,0.0001178,2]
[58925,1714333866200,-512.94,0.0001178,2]
[58926,1714333866213,-500.0,0.0001178,2]
[58927,1714333866226,-500.0,0.0001178,2]
[58928,1714333866239,-500.0,0.0001178,2]
[58929,1714333866252,-500.0,0.0001178,2]
[58930,1714333866267,-339.14,0.0001178,2]
[58931,1714333866280,-430.38,0.0001178,2]
[58933,1714333866304,-500.0,0.0001178,2]
[58935,1714333866329,-500.0,0.0001178,2]
[58937,1714333866357,-500.0,0.0001178,2]
[58939,1714333866382,-500.0,0.0001178,2]
[58941,1714333866406,-500.0,0.0001178,2]
[58943,1714333866433,-500.0,0.0001178,2]
[58945,1714333866456,-500.0,0.0001178,2]
[58947,1714333866483,-500.0,0.0001178,2]
[58949,1714333866506,-500.0,0.0001178,2]
[58950,1714333866518,-500.0,0.0001178,2]
[58951,1714333866530,-500.0,0.0001178,2]
[58953,1714333866554,-500.0,0.0001178,2]
[58955,1714333866577,-500.0,0.0001178,2]
[58957,1714333866603,-500.0,0.0001178,2]
[58959,1714333866628,-500.0,0.0001178,2]
[58961,1714333866652,-500.0,0.0001178,2]
[58963,1714333866677,-718.62,0.0001178,2]
[58965,1714333866702,-749.09,0.0001178,2]
[58967,1714333866727,-500.0,0.0001178,2]
[58968,1714333866738,-443.96,0.0001178,2]
[58969,1714333866750,-452.98,0.0001178,2]
[58970,1714333866762,-500.0,0.0001178,2]
[58971,1714333866773,-500.0,0.0001178,2]
[58972,1714333866785,-582.06,0.0001178,2]
[58973,1714333866796,-500.0,0.0001178,2]
[58974,1714333866807,-500.0,0.0001178,2]
[58975,1714333866818,-500.0,0.0001178,2]
[58977,1714333866841,-500.0,0.0001178,2]
[58978,1714333866853,-500.0,0.0001178,2]
[58979,1714333866864,-500.0,0.0001178,2]
[58981,1714333866892,-500.0,0.0001178,2]
[58982,1714333866912,-448.09,0.0001178,2]
[58983,1714333866941,-596.5,0.0001178,2]
[58984,1714333866956,-500.0,0.0001178,2]
[58985,1714333866967,-500.0,0.0001178,2]
[58986,1714333866979,-500.0,0.0001178,2]
[58987,1714333867001,-509.59,0.0001178,2]
[58988,1714333867013,-177.11,0.0001178,2]
[58989,1714333867028,-500.0,0.0001178,2]
[58990,1714333867039,-500.0,0.0001178,2]
[58991,1714333867051,-500.0,0.0001178,2]
[58992,1714333867067,-500.0,0.0001178,2]
[58993,1714333867078,-817.82,0.0001178,2]
[58994,1714333867089,-500.0,0.0001178,2]
[58995,1714333867101,-500.0,0.0001178,2]
[58997,1714333867125,-500.0,0.0001178,2]
[58999,1714333867183,-500.0,0.0001178,2]
[59000,1714333867206,-500.0,0.0001178,2]
[59001,1714333867227,-500.0,0.0001178,2]
[59002,1714333867256,-364.92,0.0001178,2]
[59003,1714333867271,-500.0,0.0001178,2]
[59005,1714333867309,-980.94,0.0001178,2]
[59007,1714333867343,-500.0,0.0001178,2]
[59009,1714333867373,-357.97,0.0001178,2]
[59011,1714333867425,-732.51,0.0001178,2]
[59013,1714333867451,-500.0,0.0001178,2]
[59015,1714333867474,-500.0,0.0001178,2]
[59017,1714333867497,-500.0,0.0001178,2]
[59019,1714333867521,-500.0,0.0001178,2]
[59021,1714333867544,-527.9,0.0001178,2]
[59023,1714333867568,-500.0,0.0001178,2]
[59025,1714333867592,-500.0,0.0001178,2]
[59027,1714333867615,-500.0,0.0001178,2]
[59029,1714333867639,-500.0,0.0001178,2]
[59031,1714333867663,-500.0,0.0001178,2]
[59033,1714333867687,-913.73,0.0001178,2]
[59035,1714333867710,-500.0,0.0001178,2]
[59037,1714333867733,-500.0,0.0001178,2]
[59039,1714333867756,-330.24,0.0001178,2]
[59041,1714333867779,-500.0,0.0001178,2]
[59043,1714333867802,-500.0,0.0001178,2]
[59045,1714333867824,-500.0,0.0001178,2]
[59047,1714333867846,-500.0,0.0001178,2]
[59049,1714333867869,-651.82,0.0001178,2]
[59051,1714333867892,-970.58,0.0001178,2]
[59052,1714333867903,-500.0,0.0001178,2]
[59053,1714333867919,-500.0,0.0001178,2]
[59054,1714333867930,-500.0,0.0001178,2]
[59055,1714333867941,-500.0,0.0001178,2]
[59056,1714333867952,-500.0,0.0001178,2]
[59057,1714333867963,-500.0,0.0001178,2]
[59059,1714333867985,-1130.44,0.0001178,2]
[59061,1714333868007,-500.0,0.0001178,2]
[59063,1714333868030,-500.0,0.0001178,2]
[59065,1714333868057,-610.07,0.0001178,2]
[59066,1714333868068,-500.0,0.0001178,2]
[59067,1714333868079,-500.0,0.0001178,2]
[59068,1714333868091,-802.03,0.0001178,2]
[59069,1714333868102,-500.0,0.0001178,2]
[59070,1714333868114,-500.0,0.0001178,2]
[59071,1714333868126,-500.0,0.0001178,2]
[59072,1714333868138,-500.0,0.0001178,2]
[59073,1714333868149,-500.0,0.0001178,2]
[59075,1714333868171,-2244.82,0.0001178,2]
[59077,1714333868194,-500.0,0.0001178,2]
[59079,1714333868216,-500.0,0.0001178,2]
[59081,1714333868239,-643.85,0.0001178,2]
[59083,1714333868261,-598.88,0.0001178,2]
[59085,1714333868283,-1510.64,0.0001178,2]
[59087,1714333868305,-500.0,0.0001178,2]
[59089,1714333868326,-500.0,0.0001178,2]
[59091,1714333868348,-2120.38,0.0001178,2]
[59093,1714333868371,-500.0,0.0001178,2]
[59095,1714333868393,-500.0,0.0001178,2]
[59097,1714333868415,-500.0,0.0001178,2]
[59099,1714333868439,-500.0,0.0001178,2]
[59101,1714333868463,-809.24,0.0001178,2]
[59103,1714333868486,-500.0,0.0001178,2]
[59105,1714333868510,-500.0,0.0001178,2]
[59107,1714333868532,-851.63,0.0001178,2]
[59109,1714333868554,-500.0,0.0001178,2]
[59111,1714333868576,-500.0,0.0001178,2]
[59113,1714333868597,-500.0,0.0001178,2]
[59115,1714333868618,-500.0,0.0001178,2]
[59117,1714333868640,-669.74,0.0001178,2]
[59119,1714333868662,-500.0,0.0001178,2]
[59121,1714333868685,-2438.98,0.0001178,2]
[59123,1714333868707,-500.0,0.0001178,2]
[59125,1714333868727,-500.0,0.0001178,2]
[59127,1714333868750,-500.0,0.0001178,2]
[59129,1714333868772,-3234.99,0.0001178,2]
[59131,1714333868800,-500.0,0.0001178,2]
[59133,1714333868822,-1439.84,0.0001178,2]
[59135,1714333868844,-2793.67,0.0001178,2]
[59137,1714333868866,-500.0,0.0001178,2]
[59139,1714333868888,-500.0,0.0001178,2]
[59140,1714333868898,-1468.32,0.0001178,2]
[59141,1714333868910,-500.0,0.0001178,2]
[59142,1714333868920,-2433.94,0.0001178,2]
[59143,1714333868932,-500.0,0.0001178,2]
[59144,1714333868943,-500.0,0.0001178,2]
[59145,1714333868953,-3274.87,0.0001178,2]
[59146,1714333868964,-7669.52,0.0001178,2]
[59147,1714333868975,-1149.81,0.0001178,2]
[59148,1714333868986,-920.14,0.0001178,2]
[59149,1714333868997,-500.0,0.0001178,2]
[59150,1714333869008,-500.0,0.0001178,2]
[59151,1714333869020,-500.0,0.0001178,2]
[59153,1714333869044,-500.0,0.0001178,2]
[59155,1714333869067,-935.36,0.0001178,2]
[59157,1714333869088,-500.0,0.0001178,2]
[59159,1714333869112,-500.0,0.0001178,2]
[59161,1714333869134,-500.0,0.0001178,2]
[59163,1714333869155,-1568.12,0.0001178,2]
[59165,1714333869178,-500.0,0.0001178,2]
[59167,1714333869200,-500.0,0.0001178,2]
[59169,1714333869223,-500.0,0.0001178,2]
[59171,1714333869245,-500.0,0.0001178,2]
[59173,1714333869664,-500.0,0.0001178,2]
[59175,1714333869728,-179.1,0.0001178,2]
[59177,1714333869763,-642.64,0.0001178,2]
[59179,1714333869813,-877.73,0.0001178,2]
[59181,1714333869851,-500.0,0.0001178,2]
[59183,1714333869895,-686.14,0.0001178,2]
[59185,1714333869948,-500.0,0.0001178,2]
[59187,1714333869988,-2087.69,0.0001178,2]
[59189,1714333870007,-1033.91,0.0001178,2]
[59190,1714333870021,-1078.64,0.0001178,2]
[59191,1714333870037,-500.0,0.0001178,2]
[59193,1714333870057,-500.0,0.0001178,2]
[59195,1714333870079,-660.63,0.0001178,2]
[59196,1714333870089,-1394.6,0.0001178,2]
[59197,1714333870099,-150.0,0.0001178,2]
[59198,1714333870109,-3293.48,0.0001178,2]
[59199,1714333870122,-500.0,0.0001178,2]
[59200,1714333870131,-500.0,0.0001178,2]
[59201,1714333870142,-500.0,0.0001178,2]
[59202,1714333870152,-500.0,0.0001178,2]
[59203,1714333870162,-1383.26,0.0001178,2]
[59205,1714333870184,-666.21,0.0001178,2]
[59207,1714333870205,-582.9,0.0001178,2]
[59209,1714333870225,-500.0,0.0001178,2]
[59211,1714333870246,-500.0,0.0001178,2]
[59213,1714333870266,-621.64,0.0001178,2]
[59215,1714333870288,-635.98,0.0001178,2]
[59217,1714333870308,-1107.0,0.0001178,2]
[59219,1714333870329,-500.0,0.0001178,2]
[59221,1714333870349,-1887.52,0.0001178,2]
[59223,1714333870369,-500.0,0.0001178,2]
[59225,1714333870390,-500.0,0.0001178,2]
[59227,1714333870412,-2646.6,0.0001178,2]
[59229,1714333870434,-1312.38,0.0001178,2]
[59230,1714333870444,-500.0,0.0001178,2]
[59231,1714333870454,-2191.19,0.0001178,2]
[59232,1714333870465,-574.1,0.0001178,2]
[59233,1714333870474,-500.0,0.0001178,2]
[59234,1714333870485,-2890.81,0.0001178,2]
[59235,1714333870495,-1910.63,0.0001178,2]
[59236,1714333870504,-1435.69,0.0001178,2]
[59237,1714333870514,-500.0,0.0001178,2]
[59238,1714333870524,-1377.83,0.0001178,2]
[59239,1714333870534,-500.0,0.0001178,2]
[59240,1714333870544,-500.0,0.0001178,2]
[59241,1714333870553,-500.0,0.0001178,2]
[59242,1714333870564,-500.0,0.0001178,2]
[59243,1714333870573,-500.0,0.0001178,2]
[59244,1714333870582,-814.52,0.0001178,2]
[59245,1714333870596,-500.0,0.0001178,2]
[59246,1714333870606,-877.24,0.0001178,2]
[59247,1714333870617,-500.0,0.0001178,2]
[59248,1714333870627,-2530.69,0.0001178,2]
[59249,1714333870637,-500.0,0.0001178,2]
[59250,1714333870647,-500.0,0.0001178,2]
[59251,1714333870656,-500.0,0.0001178,2]
[59252,1714333870667,-621.4,0.0001178,2]
[59253,1714333870677,-500.0,0.0001178,2]
[59254,1714333870689,-500.0,0.0001178,2]
[59255,1714333870698,-2915.48,0.0001178,2]
[59256,1714333870708,-1278.3,0.0001178,2]
[59257,1714333870720,-500.0,0.0001178,2]
[59258,1714333870730,-1146.85,0.0001178,2]
[59259,1714333870742,-500.0,0.0001178,2]
[59260,1714333870752,-500.0,0.0001178,2]
[59261,1714333870764,-500.0,0.0001178,2]
[59262,1714333870774,-763.84,0.0001178,2]
[59263,1714333870784,-3171.22,0.0001178,2]
[59264,1714333870795,-630.5,0.0001178,2]
[59265,1714333870803,-500.0,0.0001178,2]
[59266,1714333870814,-531.19,0.0001178,2]
[59267,1714333870825,-500.0,0.0001178,2]
[59268,1714333870837,-2674.38,0.0001178,2]
[59269,1714333870847,-500.0,0.0001178,2]
[59270,1714333870856,-2017.39,0.0001178,2]
[59271,1714333870867,-500.0,0.0001178,2]
[59272,1714333870878,-500.0,0.0001178,2]
[59273,1714333870888,-501.88556208,0.0001178,2]
[59274,1714333870898,-500.0,0.0001178,2]
[59275,1714333870908,-856.24,0.0001178,2]
[59276,1714333870918,-534.56,0.0001178,2]
[59277,1714333870928,-500.0,0.0001178,2]
[59278,1714333870938,-500.0,0.0001178,2]
[59279,1714333870948,-500.0,0.0001178,2]
[59280,1714333870958,-500.0,0.0001178,2]
[59281,1714333870968,-500.0,0.0001178,2]
[59282,1714333870977,-500.0,0.0001178,2]
[59283,1714333870988,-500.0,0.0001178,2]
[59284,1714333870999,-500.0,0.0001178,2]
[59285,1714333871009,-500.0,0.0001178,2]
[59286,1714333871019,-500.0,0.0001178,2]
[59287,1714333871031,-1121.09,0.0001178,2]
[59288,1714333871044,-978.42,0.0001178,2]
[59289,1714333871054,-500.0,0.0001178,2]
[59290,1714333871065,-657.57,0.0001178,2]
[59291,1714333871076,-500.0,0.0001178,2]
[59292,1714333871087,-8320.09,0.0001178,2]
[59293,1714333871098,-908.28,0.0001178,2]
[59294,1714333871108,-512.12783245,0.0001178,2]
[59295,1714333871119,-532.07,0.0001178,2]
[59296,1714333871130,-500.0,0.0001178,2]
[59297,1714333871141,-509.22,0.0001178,2]
[59298,1714333871151,-500.0,0.0001178,2]
[59299,1714333871161,-500.0,0.0001178,2]
[59300,1714333871172,-647.31,0.0001178,2]
[59301,1714333871184,-914.72,0.0001178,2]
[59302,1714333871195,-500.0,0.0001178,2]
[59303,1714333871205,-500.0,0.0001178,2]
[59304,1714333871215,-500.0,0.0001178,2]
[59305,1714333871228,-3853.58,0.0001178,2]
[59306,1714333871237,-1636.81057603,0.00011954,2]
[59307,1714333871247,-5000.0,0.00012,2]
[59308,1714333871256,-2040.85316132,0.00012,2]
[59309,1714333871266,-280.0,0.00012016,2]
[59310,1714333871275,-500.0,0.00012054,2]
[59311,1714333871284,-500.0,0.00012054,2]
[59312,1714333871294,-321.94837983,0.00012054,2]
[59313,1714333871703,-178.05162017,0.00012054,2]
[59314,1714333871712,-345.05337988,0.00012054,2]
[59315,1714333871725,-154.94662012,0.00012054,2]
[59316,1714333871734,-336.01245788,0.00012054,2]
[59317,1714333871746,-163.98754212,0.00012054,2]
[59318,1714333871756,-500.0,0.00012054,2]
[59319,1714333871765,-500.0,0.00012054,2]
[59320,1714333871774,-350.69866385,0.00012054,2]
[59321,1714333871783,-500.0,0.00012054,2]
[59322,1714333871792,-500.0,0.00012054,2]
[59323,1714333871801,-174.87652882,0.00012054,2]
[59324,1714333871812,-325.12347118,0.00012054,2]
[59325,1714333871822,-500.0,0.00012054,2]
[59326,1714333871831,-340.47652882,0.00012054,2]
[59327,1714333871904,-334.94556532,0.00011232,2]
[59328,1714333871916,-165.05443468,0.00011232,2]
[59329,1714333871925,-705.71,0.00011506,2]
[59330,1714333871935,-942.92,0.0001178,2]
[59331,1714333871945,-159.52347118,0.00012054,2]
[59332,1714333871954,-500.0,0.00012054,2]
[59333,1714333871963,-500.0,0.00012054,2]
[59334,1714333871972,-210.49679414,0.00012054,2]
[59335,1714333872759,-500.0,0.00010958,2]
[59336,1714333872770,-500.0,0.00011506,2]
[59337,1714333872779,-673.74,0.0001178,2]
[59338,1714333872788,-500.0,0.0001178,2]
[59339,1714333872797,-705.71,0.0001178,2]
[59340,1714333872807,-289.50320586,0.00012054,2]
[59341,1714333872816,-500.0,0.00012054,2]
[59342,1714333872825,-500.0,0.00012054,2]
[59343,1714333872835,-500.0,0.00012054,2]
[59344,1714333872845,-500.0,0.00012054,2]
[59345,1714333872855,-500.0,0.00012054,2]
[59346,1714333872865,-500.0,0.00012054,2]
[59347,1714333872875,-500.0,0.00012054,2]
[59348,1714333872884,-500.0,0.00012054,2]
[59349,1714333872893,-500.0,0.00012054,2]
[59350,1714333872903,-500.0,0.00012054,2]
[59351,1714333872912,-500.0,0.00012054,2]
[59352,1714333872921,-564.33263748,0.00012054,2]
[59353,1714333872931,-500.0,0.00012054,2]
[59354,1714333872940,-500.0,0.00012054,2]
[59355,1714333872949,-500.0,0.00012054,2]
[59356,1714333872958,-500.0,0.00012054,2]
[59357,1714333872967,-500.0,0.00012054,2]
[59358,1714333872977,-500.0,0.00012054,2]
[59359,1714333872986,-500.0,0.00012054,2]
[59360,1714333872995,-500.0,0.00012054,2]
[59361,1714333873004,-500.0,0.00012054,2]
[59362,1714333873013,-500.0,0.00012054,2]
[59363,1714333873022,-500.0,0.00012054,2]
[59365,1714333873043,-500.0,0.00012054,2]
[59366,1714333873052,-500.0,0.00012054,2]
[59367,1714333873062,-500.0,0.00012054,2]
[59369,1714333873080,-500.0,0.00012054,2]
[59371,1714333873100,-500.0,0.00012054,2]
[59373,1714333873123,-500.0,0.00012054,2]
[59375,1714333873143,-503.6719978,0.00012054,2]
[59376,1714333873152,-500.0,0.00012054,2]
[59377,1714333873161,-500.0,0.00012054,2]
[59379,1714333873180,-500.0,0.00012054,2]
[59381,1714333873199,-500.0,0.00012054,2]
[59383,1714333873217,-500.0,0.00012054,2]
[59384,1714333873226,-500.0,0.00012054,2]
[59385,1714333873235,-500.0,0.00012054,2]
[59387,1714333873253,-500.0,0.00012054,2]
[59389,1714333873272,-500.0,0.00012054,2]
[59390,1714333873281,-500.0,0.00012054,2]
[59391,1714333873291,-500.0,0.00012054,2]
[59392,1714333873300,-500.0,0.00012054,2]
[59393,1714333873309,-544.57,0.00012054,2]
[59394,1714333873319,-500.0,0.00012054,2]
[59395,1714333873328,-571.75,0.00012054,2]
[59396,1714333873338,-500.0,0.00012054,2]
[59397,1714333873347,-500.0,0.00012054,2]
[59399,1714333873365,-500.0,0.00012054,2]
[59401,1714333873383,-500.0,0.00012054,2]
[59402,1714333873393,-500.0,0.00012054,2]
[59403,1714333873403,-500.0,0.00012054,2]
[59405,1714333873421,-500.0,0.00012054,2]
[59407,1714333873441,-545.9,0.00012054,2]
[59409,1714333873461,-500.0,0.00012054,2]
[59411,1714333873481,-263.41,0.00012054,2]
[59413,1714333873500,-500.0,0.00012054,2]
[59414,1714333873510,-500.0,0.00012054,2]
[59415,1714333873519,-228.18,0.00012054,2]
[59416,1714333873528,-500.0,0.00012054,2]
[59417,1714333873538,-500.0,0.00012054,2]
[59419,1714333873557,-500.0,0.00012054,2]
[59421,1714333873576,-500.0,0.00012054,2]
[59422,1714333873586,-500.0,0.00012054,2]
[59423,1714333873596,-500.0,0.00012054,2]
[59425,1714333873615,-500.0,0.00012054,2]
[59427,1714333873634,-500.0,0.00012054,2]
[59428,1714333873644,-500.0,0.00012054,2]
[59429,1714333873654,-500.0,0.00012054,2]
[59430,1714333873663,-431.64,0.00012054,2]
[59431,1714333873673,-500.0,0.00012054,2]
[59432,1714333873684,-500.0,0.00012054,2]
[59433,1714333873693,-1063.6,0.00012054,2]
[59434,1714333873703,-500.0,0.00012054,2]
[59435,1714333873712,-500.0,0.00012054,2]
[59436,1714333873722,-500.0,0.00012054,2]
[59437,1714333873731,-1029.24,0.00012054,2]
[59438,1714333873741,-500.0,0.00012054,2]
[59439,1714333873750,-540.5,0.00012054,2]
[59440,1714333873760,-500.0,0.00012054,2]
[59441,1714333873770,-500.0,0.00012054,2]
[59442,1714333873780,-500.0,0.00012054,2]
[59443,1714333873789,-500.0,0.00012054,2]
[59444,1714333873799,-500.0,0.00012054,2]
[59445,1714333873809,-500.0,0.00012054,2]
[59446,1714333873819,-704.81,0.00012054,2]
[59447,1714333873829,-500.0,0.00012054,2]
[59448,1714333873839,-806.93,0.00012054,2]
[59449,1714333873849,-500.0,0.00012054,2]
[59450,1714333873858,-500.0,0.00012054,2]
[59451,1714333873868,-500.0,0.00012054,2]
[59452,1714333873878,-500.0,0.00012054,2]
[59453,1714333873887,-500.0,0.00012054,2]
[59454,1714333873897,-754.87,0.00012054,2]